[Event "Titled Tuesday Blitz January 10 Early 2023"]
[White "Bazarov, Konstantin"]
[Black "Gjestemoen-VonHirsch, Andre"]
[WhiteFideId "4137000"]
[BlackFideId "1539531"]
[WhiteElo "2235"]
[BlackElo "2314"]
[Result "0-1"]
[Round "09"]
[TimeControl "180+2"]
[Date "2023.01.10"]
[WhiteClock "0:00:03"]
[BlackClock "0:00:16"]

1. d4 {[%clk 0:03:00]}  g6 {[%clk 0:02:58]} 2. e4 {[%clk 0:02:57]}  Bg7 {[%clk 0:02:55]} 3. c3 {[%clk 0:02:56]}  d6 {[%clk 0:02:46]} 4. Nf3 {[%clk 0:02:53]}  Nf6 {[%clk 0:02:46]} 5. Bd3 {[%clk 0:02:53]}  O-O {[%clk 0:02:42]} 6. O-O {[%clk 0:02:52]}  c5 {[%clk 0:02:41]} 7. h3 {[%clk 0:02:50]}  Na6 {[%clk 0:02:31]} 8. a3 {[%clk 0:02:48]}  Nc7 {[%clk 0:02:29]} 9. Re1 {[%clk 0:02:41]}  b6 {[%clk 0:02:13]} 10. Bf4 {[%clk 0:02:39]}  Bb7 {[%clk 0:02:10]} 11. Nbd2 {[%clk 0:02:36]}  cxd4 {[%clk 0:02:07]} 12. cxd4 {[%clk 0:02:36]}  Ne6 {[%clk 0:02:02]} 13. Be3 {[%clk 0:02:21]}  Rc8 {[%clk 0:02:02]} 14. Rc1 {[%clk 0:02:13]}  Rxc1 {[%clk 0:01:58]} 15. Qxc1 {[%clk 0:02:12]}  Qa8 {[%clk 0:01:56]} 16. d5 {[%clk 0:02:03]}  Rc8 {[%clk 0:01:55]} 17. Qb1 {[%clk 0:02:01]}  Nc5 {[%clk 0:01:55]} 18. Bc2 {[%clk 0:01:57]}  a5 {[%clk 0:01:55]} 19. Nd4 {[%clk 0:01:48]}  Nfd7 {[%clk 0:01:48]} 20. Rc1 {[%clk 0:01:39]}  a4 {[%clk 0:01:41]} 21. Bd1 {[%clk 0:01:32]}  Ne5 {[%clk 0:01:29]} 22. Be2 {[%clk 0:01:31]}  Ba6 {[%clk 0:01:27]} 23. Bxa6 {[%clk 0:01:18]}  Qxa6 {[%clk 0:01:28]} 24. f4 {[%clk 0:01:13]}  Ned3 {[%clk 0:01:24]} 25. Rf1 {[%clk 0:01:07]}  Bxd4 {[%clk 0:01:17]} 26. Bxd4 {[%clk 0:01:05]}  Nb3 {[%clk 0:01:17]} 27. Nxb3 {[%clk 0:01:02]}  axb3 {[%clk 0:01:18]} 28. Bc3 {[%clk 0:01:02]}  Rxc3 {[%clk 0:01:02]} 29. bxc3 {[%clk 0:01:01]}  Qc4 {[%clk 0:01:03]} 30. Rf3 {[%clk 0:00:56]}  Nc5 {[%clk 0:01:01]} 31. e5 {[%clk 0:00:47]}  Qxd5 {[%clk 0:00:50]} 32. exd6 {[%clk 0:00:46]}  Qxd6 {[%clk 0:00:50]} 33. Kh2 {[%clk 0:00:42]}  Qd2 {[%clk 0:00:42]} 34. c4 {[%clk 0:00:38]}  b2 {[%clk 0:00:39]} 35. f5 {[%clk 0:00:29]}  Na4 {[%clk 0:00:25]} 36. fxg6 {[%clk 0:00:27]}  hxg6 {[%clk 0:00:24]} 37. Qf1 {[%clk 0:00:21]}  Nc3 {[%clk 0:00:18]} 38. Rxf7 {[%clk 0:00:20]}  Qd6+ {[%clk 0:00:18]} 39. g3 {[%clk 0:00:17]}  b1=Q {[%clk 0:00:18]} 40. Rf8+ {[%clk 0:00:16]}  Kg7 {[%clk 0:00:16]} 41. Qf7+ {[%clk 0:00:16]}  Kh6 {[%clk 0:00:16]} 42. Rh8+ {[%clk 0:00:12]}  Kg5 {[%clk 0:00:16]} 43. h4+ {[%clk 0:00:06]}  Kg4 {[%clk 0:00:17]} 44. Qf2 {[%clk 0:00:03]}  Qa2 {[%clk 0:00:16]} 45. Qxa2 {[%clk 0:00:03]}  Nxa2 {[%clk 0:00:16]} 0-1


[Site "https://www.chess.com"]

[Event "Titled Tuesday Blitz January 10 Early 2023"]
[White "Kvaloy, Aksel Bu"]
[Black "Fathy, Elameir"]
[WhiteFideId "1528815"]
[BlackFideId "10600396"]
[WhiteElo "2321"]
[BlackElo "2300"]
[Result "0-1"]
[Round "09"]
[TimeControl "180+2"]
[Date "2023.01.10"]
[WhiteClock "0:00:20"]
[BlackClock "0:00:10"]

1. d4 {[%clk 0:03:00]}  d5 {[%clk 0:02:59]} 2. c4 {[%clk 0:02:56]}  c6 {[%clk 0:02:59]} 3. Nf3 {[%clk 0:02:54]}  Nf6 {[%clk 0:02:57]} 4. g3 {[%clk 0:02:51]}  Bf5 {[%clk 0:02:54]} 5. Nc3 {[%clk 0:02:48]}  e6 {[%clk 0:02:53]} 6. Qb3 {[%clk 0:02:48]}  Qb6 {[%clk 0:02:47]} 7. c5 {[%clk 0:02:48]}  Qxb3 {[%clk 0:02:34]} 8. axb3 {[%clk 0:02:49]}  Be7 {[%clk 0:02:31]} 9. b4 {[%clk 0:02:46]}  O-O {[%clk 0:02:26]} 10. b5 {[%clk 0:02:44]}  cxb5 {[%clk 0:02:22]} 11. e3 {[%clk 0:02:38]}  b4 {[%clk 0:02:14]} 12. Nb5 {[%clk 0:02:33]}  Nc6 {[%clk 0:02:13]} 13. Bd2 {[%clk 0:02:13]}  a6 {[%clk 0:01:54]} 14. Nd6 {[%clk 0:02:12]}  Bxd6 {[%clk 0:01:51]} 15. cxd6 {[%clk 0:02:13]}  Be4 {[%clk 0:01:41]} 16. Bg2 {[%clk 0:02:10]}  Rfd8 {[%clk 0:01:38]} 17. O-O {[%clk 0:02:10]}  Rxd6 {[%clk 0:01:37]} 18. Ne5 {[%clk 0:02:09]}  Bxg2 {[%clk 0:01:36]} 19. Kxg2 {[%clk 0:02:09]}  Ne4 {[%clk 0:01:36]} 20. Be1 {[%clk 0:02:04]}  f6 {[%clk 0:01:34]} 21. Nxc6 {[%clk 0:02:03]}  Rxc6 {[%clk 0:01:35]} 22. Bxb4 {[%clk 0:01:44]}  Rac8 {[%clk 0:01:35]} 23. f3 {[%clk 0:01:37]}  Rc2+ {[%clk 0:01:34]} 24. Kg1 {[%clk 0:01:36]}  Nd2 {[%clk 0:01:19]} 25. Rf2 {[%clk 0:01:03]}  Nb3 {[%clk 0:01:10]} 26. Raf1 {[%clk 0:01:03]}  Rxf2 {[%clk 0:00:59]} 27. Rxf2 {[%clk 0:01:03]}  Kf7 {[%clk 0:00:46]} 28. Kf1 {[%clk 0:00:47]}  a5 {[%clk 0:00:45]} 29. Be1 {[%clk 0:00:32]}  Rc1 {[%clk 0:00:42]} 30. Ke2 {[%clk 0:00:31]}  Rc2+ {[%clk 0:00:37]} 31. Kd3 {[%clk 0:00:29]}  Rxf2 {[%clk 0:00:38]} 32. Bxf2 {[%clk 0:00:30]}  b5 {[%clk 0:00:23]} 33. Kc3 {[%clk 0:00:29]}  Nc1 {[%clk 0:00:20]} 34. Kc2 {[%clk 0:00:21]}  Na2 {[%clk 0:00:18]} 35. Be1 {[%clk 0:00:22]}  b4 {[%clk 0:00:10]} 36. Kb3 {[%clk 0:00:12]}  Nc1+ {[%clk 0:00:10]} 37. Kc2 {[%clk 0:00:12]}  Na2 {[%clk 0:00:08]} 38. Kb3 {[%clk 0:00:13]}  Nc1+ {[%clk 0:00:05]} 39. Ka4 {[%clk 0:00:10]}  Nd3 {[%clk 0:00:06]} 40. Bd2 {[%clk 0:00:08]}  Nxb2+ {[%clk 0:00:06]} 41. Kxa5 {[%clk 0:00:09]}  Nc4+ {[%clk 0:00:06]} 42. Kxb4 {[%clk 0:00:06]}  Nxd2 {[%clk 0:00:06]} 43. Kc3 {[%clk 0:00:07]}  Nxf3 {[%clk 0:00:07]} 44. h3 {[%clk 0:00:06]}  Ng1 {[%clk 0:00:06]} 45. Kd3 {[%clk 0:00:03]}  Nxh3 {[%clk 0:00:06]} 46. Ke2 {[%clk 0:00:04]}  Ng5 {[%clk 0:00:07]} 47. Kf1 {[%clk 0:00:03]}  h5 {[%clk 0:00:06]} 48. Kg2 {[%clk 0:00:04]}  Ne4 {[%clk 0:00:06]} 49. Kf3 {[%clk 0:00:04]}  g5 {[%clk 0:00:07]} 50. g4 {[%clk 0:00:04]}  Kg6 {[%clk 0:00:06]} 51. gxh5+ {[%clk 0:00:04]}  Kxh5 {[%clk 0:00:07]} 52. Ke2 {[%clk 0:00:04]}  f5 {[%clk 0:00:08]} 53. Kd3 {[%clk 0:00:05]}  g4 {[%clk 0:00:08]} 54. Kc2 {[%clk 0:00:06]}  g3 {[%clk 0:00:09]} 55. Kb3 {[%clk 0:00:07]}  g2 {[%clk 0:00:09]} 56. Ka4 {[%clk 0:00:08]}  g1=Q {[%clk 0:00:10]} 57. Kb5 {[%clk 0:00:09]}  Qxe3 {[%clk 0:00:10]} 58. Kc6 {[%clk 0:00:09]}  Qxd4 {[%clk 0:00:10]} 59. Kd7 {[%clk 0:00:10]}  Qb6 {[%clk 0:00:10]} 60. Ke7 {[%clk 0:00:10]}  d4 {[%clk 0:00:10]} 61. Kf7 {[%clk 0:00:11]}  f4 {[%clk 0:00:10]} 62. Ke7 {[%clk 0:00:11]}  e5 {[%clk 0:00:11]} 63. Kf7 {[%clk 0:00:12]}  Nd2 {[%clk 0:00:11]} 64. Ke7 {[%clk 0:00:13]}  Nb1 {[%clk 0:00:12]} 65. Kf7 {[%clk 0:00:14]}  d3 {[%clk 0:00:13]} 66. Ke7 {[%clk 0:00:15]}  e4 {[%clk 0:00:13]} 67. Kf7 {[%clk 0:00:16]}  f3 {[%clk 0:00:14]} 68. Ke7 {[%clk 0:00:16]}  e3 {[%clk 0:00:15]} 69. Kf7 {[%clk 0:00:17]}  d2 {[%clk 0:00:16]} 70. Ke7 {[%clk 0:00:18]}  d1=Q {[%clk 0:00:17]} 71. Kf7 {[%clk 0:00:19]}  Qd7+ {[%clk 0:00:16]} 72. Kg8 {[%clk 0:00:16]}  f2 {[%clk 0:00:15]} 73. Kh8 {[%clk 0:00:17]}  f1=Q {[%clk 0:00:14]} 74. Kg8 {[%clk 0:00:18]}  e2 {[%clk 0:00:12]} 75. Kh8 {[%clk 0:00:18]}  e1=Q {[%clk 0:00:12]} 76. Kg8 {[%clk 0:00:19]}  Qg6+ {[%clk 0:00:11]} 77. Kh8 {[%clk 0:00:20]}  Qc3# {[%clk 0:00:10]} 0-1


[Site "https://www.chess.com"]

[Event "Titled Tuesday Blitz January 10 Early 2023"]
[White "Fayzullaev, Akmal"]
[Black "Perez Rodriguez, Jennifer"]
[WhiteFideId "14200554"]
[BlackFideId "3507831"]
[WhiteElo "2391"]
[BlackElo "2242"]
[Result "0-1"]
[Round "09"]
[TimeControl "180+2"]
[Date "2023.01.10"]
[WhiteClock "0:00:50"]
[BlackClock "0:02:11"]

1. e4 {[%clk 0:02:15]}  e5 {[%clk 0:02:57]} 2. Nf3 {[%clk 0:02:13]}  Nc6 {[%clk 0:02:57]} 3. Bc4 {[%clk 0:02:11]}  Bc5 {[%clk 0:02:56]} 4. d3 {[%clk 0:02:01]}  Nf6 {[%clk 0:02:56]} 5. c3 {[%clk 0:01:59]}  d6 {[%clk 0:02:57]} 6. Bb3 {[%clk 0:01:57]}  a5 {[%clk 0:02:57]} 7. h3 {[%clk 0:01:56]}  h6 {[%clk 0:02:57]} 8. Nbd2 {[%clk 0:01:54]}  O-O {[%clk 0:02:56]} 9. Nf1 {[%clk 0:01:49]}  Re8 {[%clk 0:02:49]} 10. g4 {[%clk 0:01:48]}  d5 {[%clk 0:02:45]} 11. Qe2 {[%clk 0:01:47]}  dxe4 {[%clk 0:02:43]} 12. dxe4 {[%clk 0:01:46]}  a4 {[%clk 0:02:43]} 13. Bc2 {[%clk 0:01:45]}  b6 {[%clk 0:02:43]} 14. g5 {[%clk 0:01:44]}  Ba6 {[%clk 0:02:42]} 15. Qd2 {[%clk 0:01:28]}  hxg5 {[%clk 0:02:37]} 16. Qxg5 {[%clk 0:01:20]}  Bd3 {[%clk 0:02:16]} 17. Rg1 {[%clk 0:01:10]}  Bxf2+ {[%clk 0:02:16]} 18. Kd1 {[%clk 0:00:50]}  Bxg1 {[%clk 0:02:11]} 0-1


[Site "https://www.chess.com"]

[Event "Titled Tuesday Blitz January 10 Early 2023"]
[White "Ruiz Aguilar, Pablo Alexander"]
[Black "Goltseva, Ekaterina"]
[WhiteFideId "4401352"]
[BlackFideId "24173770"]
[WhiteElo "2161"]
[BlackElo "2283"]
[Result "0-1"]
[Round "09"]
[TimeControl "180+2"]
[Date "2023.01.10"]
[WhiteClock "0:00:01"]
[BlackClock "0:00:05"]

1. e4 {[%clk 0:03:00]}  c5 {[%clk 0:02:45]} 2. Nf3 {[%clk 0:03:00]}  e6 {[%clk 0:02:44]} 3. d4 {[%clk 0:03:00]}  cxd4 {[%clk 0:02:45]} 4. Nxd4 {[%clk 0:03:01]}  Nf6 {[%clk 0:02:46]} 5. Bd3 {[%clk 0:02:58]}  Nc6 {[%clk 0:02:43]} 6. Nxc6 {[%clk 0:02:57]}  bxc6 {[%clk 0:02:42]} 7. O-O {[%clk 0:02:58]}  d5 {[%clk 0:02:32]} 8. Nd2 {[%clk 0:02:52]}  Bd6 {[%clk 0:02:23]} 9. c4 {[%clk 0:02:46]}  O-O {[%clk 0:02:20]} 10. Qe2 {[%clk 0:02:45]}  Qc7 {[%clk 0:02:17]} 11. h3 {[%clk 0:02:34]}  Rb8 {[%clk 0:02:04]} 12. b3 {[%clk 0:02:31]}  Be5 {[%clk 0:02:03]} 13. Rb1 {[%clk 0:02:30]}  Rd8 {[%clk 0:01:58]} 14. Ba3 {[%clk 0:02:15]}  Ba6 {[%clk 0:01:46]} 15. Rfc1 {[%clk 0:02:04]}  Bf4 {[%clk 0:01:42]} 16. cxd5 {[%clk 0:01:54]}  Bxd3 {[%clk 0:01:40]} 17. Qxd3 {[%clk 0:01:54]}  exd5 {[%clk 0:01:21]} 18. e5 {[%clk 0:01:31]}  Bxe5 {[%clk 0:01:11]} 19. Nf3 {[%clk 0:01:31]}  Bf4 {[%clk 0:01:08]} 20. Rc2 {[%clk 0:01:29]}  Rbc8 {[%clk 0:01:01]} 21. Nd4 {[%clk 0:01:27]}  Qa5 {[%clk 0:00:44]} 22. Be7 {[%clk 0:01:23]}  Re8 {[%clk 0:00:40]} 23. b4 {[%clk 0:01:07]}  Qb6 {[%clk 0:00:27]} 24. Bxf6 {[%clk 0:00:58]}  gxf6 {[%clk 0:00:28]} 25. Nf5 {[%clk 0:00:58]}  Kh8 {[%clk 0:00:21]} 26. Qf3 {[%clk 0:00:53]}  Be5 {[%clk 0:00:19]} 27. a3 {[%clk 0:00:45]}  Qb7 {[%clk 0:00:17]} 28. Rbc1 {[%clk 0:00:39]}  Rg8 {[%clk 0:00:17]} 29. Nh6 {[%clk 0:00:35]}  Rg6 {[%clk 0:00:16]} 30. Ng4 {[%clk 0:00:34]}  Qd7 {[%clk 0:00:11]} 31. Ne3 {[%clk 0:00:30]}  d4 {[%clk 0:00:09]} 32. Nc4 {[%clk 0:00:22]}  d3 {[%clk 0:00:09]} 33. Rd2 {[%clk 0:00:20]}  Rd8 {[%clk 0:00:08]} 34. Rcd1 {[%clk 0:00:20]}  Qe8 {[%clk 0:00:03]} 35. Rxd3 {[%clk 0:00:17]}  Rxd3 {[%clk 0:00:03]} 36. Qxd3 {[%clk 0:00:16]}  Rg8 {[%clk 0:00:03]} 37. Ne3 {[%clk 0:00:14]}  Qe6 {[%clk 0:00:03]} 38. Qf5 {[%clk 0:00:14]}  Re8 {[%clk 0:00:02]} 39. Qxe6 {[%clk 0:00:14]}  fxe6 {[%clk 0:00:02]} 40. Rd7 {[%clk 0:00:14]}  a6 {[%clk 0:00:02]} 41. Nc4 {[%clk 0:00:14]}  Bc3 {[%clk 0:00:02]} 42. Nd6 {[%clk 0:00:13]}  Rb8 {[%clk 0:00:02]} 43. Nf7+ {[%clk 0:00:12]}  Kg8 {[%clk 0:00:02]} 44. Nh6+ {[%clk 0:00:11]}  Kh8 {[%clk 0:00:02]} 45. Nf7+ {[%clk 0:00:10]}  Kg8 {[%clk 0:00:03]} 46. Nd6 {[%clk 0:00:10]}  Bb2 {[%clk 0:00:03]} 47. Nc4 {[%clk 0:00:09]}  Bc1 {[%clk 0:00:03]} 48. Kf1 {[%clk 0:00:08]}  Ra8 {[%clk 0:00:03]} 49. Ke2 {[%clk 0:00:08]}  Bf4 {[%clk 0:00:04]} 50. g3 {[%clk 0:00:08]}  Bg5 {[%clk 0:00:04]} 51. f4 {[%clk 0:00:08]}  Bh6 {[%clk 0:00:04]} 52. Nd6 {[%clk 0:00:06]}  Bf8 {[%clk 0:00:04]} 53. Nb7 {[%clk 0:00:05]}  Ra7 {[%clk 0:00:04]} 54. Kd3 {[%clk 0:00:02]}  h5 {[%clk 0:00:04]} 55. Kc4 {[%clk 0:00:02]}  a5 {[%clk 0:00:04]} 56. bxa5 {[%clk 0:00:01]}  Bxa3 {[%clk 0:00:05]} 0-1


[Site "https://www.chess.com"]

[Event "Titled Tuesday Blitz January 10 Early 2023"]
[White "Florescu, Codrut-Constantin"]
[Black "Lakshmi C"]
[WhiteFideId "1202200"]
[BlackFideId "25035347"]
[WhiteElo "2259"]
[BlackElo "1928"]
[Result "1-0"]
[Round "09"]
[TimeControl "180+2"]
[Date "2023.01.10"]
[WhiteClock "0:01:31"]
[BlackClock "0:00:02"]

1. d4 {[%clk 0:03:00]}  Nf6 {[%clk 0:02:54]} 2. c4 {[%clk 0:03:00]}  e6 {[%clk 0:02:50]} 3. Nf3 {[%clk 0:02:59]}  b6 {[%clk 0:02:49]} 4. g3 {[%clk 0:02:59]}  Bb7 {[%clk 0:02:49]} 5. Bg2 {[%clk 0:02:59]}  Be7 {[%clk 0:02:50]} 6. O-O {[%clk 0:02:59]}  O-O {[%clk 0:02:49]} 7. Re1 {[%clk 0:02:59]}  Qc8 {[%clk 0:02:18]} 8. Bg5 {[%clk 0:02:50]}  h6 {[%clk 0:02:16]} 9. Bxf6 {[%clk 0:02:50]}  Bxf6 {[%clk 0:02:16]} 10. e4 {[%clk 0:02:50]}  d6 {[%clk 0:02:14]} 11. e5 {[%clk 0:02:48]}  dxe5 {[%clk 0:02:13]} 12. dxe5 {[%clk 0:02:48]}  Be7 {[%clk 0:02:10]} 13. Nc3 {[%clk 0:02:47]}  Nc6 {[%clk 0:01:52]} 14. Ne4 {[%clk 0:02:45]}  Bb4 {[%clk 0:01:36]} 15. Re3 {[%clk 0:02:40]}  Rd8 {[%clk 0:01:23]} 16. Qb3 {[%clk 0:02:39]}  a5 {[%clk 0:01:22]} 17. a3 {[%clk 0:02:37]}  a4 {[%clk 0:01:20]} 18. Qc2 {[%clk 0:02:35]}  Be7 {[%clk 0:01:19]} 19. Rd1 {[%clk 0:02:33]}  Rxd1+ {[%clk 0:01:15]} 20. Qxd1 {[%clk 0:02:33]}  Qd8 {[%clk 0:01:03]} 21. Rd3 {[%clk 0:02:32]}  Qe8 {[%clk 0:01:03]} 22. Nc3 {[%clk 0:02:11]}  Na5 {[%clk 0:00:53]} 23. Nd2 {[%clk 0:02:03]}  Bxg2 {[%clk 0:00:48]} 24. Kxg2 {[%clk 0:02:04]}  Qc6+ {[%clk 0:00:42]} 25. Qf3 {[%clk 0:02:03]}  Qxf3+ {[%clk 0:00:22]} 26. Kxf3 {[%clk 0:02:04]}  Bc5 {[%clk 0:00:17]} 27. Nb5 {[%clk 0:01:57]}  c6 {[%clk 0:00:16]} 28. Nc3 {[%clk 0:01:55]}  Nb7 {[%clk 0:00:10]} 29. Rd7 {[%clk 0:01:53]}  Na5 {[%clk 0:00:07]} 30. Nce4 {[%clk 0:01:47]}  Bf8 {[%clk 0:00:06]} 31. Nd6 {[%clk 0:01:42]}  f5 {[%clk 0:00:05]} 32. Ke3 {[%clk 0:01:35]}  b5 {[%clk 0:00:02]} 33. c5 {[%clk 0:01:31]} 1-0


[Site "https://www.chess.com"]

[Event "Titled Tuesday Blitz January 10 Early 2023"]
[White "Stanojevic, Ilija"]
[Black "Lewtak, Damian"]
[WhiteFideId "959995"]
[BlackFideId "1141724"]
[WhiteElo "2142"]
[BlackElo "2381"]
[Result "1-0"]
[Round "09"]
[TimeControl "180+2"]
[Date "2023.01.10"]
[WhiteClock "0:00:17"]
[BlackClock "0:01:24"]

1. d4 {[%clk 0:03:00]}  a6 {[%clk 0:02:56]} 2. c4 {[%clk 0:02:57]}  b5 {[%clk 0:02:57]} 3. e3 {[%clk 0:02:56]}  bxc4 {[%clk 0:02:55]} 4. Bxc4 {[%clk 0:02:57]}  d5 {[%clk 0:02:56]} 5. Bd3 {[%clk 0:02:55]}  Nf6 {[%clk 0:02:55]} 6. Nf3 {[%clk 0:02:54]}  e6 {[%clk 0:02:55]} 7. Qc2 {[%clk 0:02:52]}  Nbd7 {[%clk 0:02:54]} 8. a3 {[%clk 0:02:44]}  c5 {[%clk 0:02:54]} 9. dxc5 {[%clk 0:02:43]}  Nxc5 {[%clk 0:02:55]} 10. Be2 {[%clk 0:02:43]}  Bd7 {[%clk 0:02:54]} 11. O-O {[%clk 0:02:43]}  Ba4 {[%clk 0:02:52]} 12. Qc3 {[%clk 0:02:24]}  Rc8 {[%clk 0:02:52]} 13. b4 {[%clk 0:01:26]}  Nb3 {[%clk 0:02:42]} 14. Qb2 {[%clk 0:01:26]}  Nxa1 {[%clk 0:02:42]} 15. Qxa1 {[%clk 0:01:27]}  Qb6 {[%clk 0:02:28]} 16. Bb2 {[%clk 0:01:07]}  Be7 {[%clk 0:02:27]} 17. Nc3 {[%clk 0:01:06]}  Bb3 {[%clk 0:02:19]} 18. Nd4 {[%clk 0:01:05]}  O-O {[%clk 0:02:15]} 19. Nxb3 {[%clk 0:01:03]}  Rc7 {[%clk 0:02:10]} 20. Nd4 {[%clk 0:01:01]}  Rfc8 {[%clk 0:02:09]} 21. h3 {[%clk 0:00:58]}  Bd6 {[%clk 0:02:05]} 22. Bd3 {[%clk 0:00:54]}  Be5 {[%clk 0:02:03]} 23. Nde2 {[%clk 0:00:44]}  d4 {[%clk 0:01:57]} 24. Ne4 {[%clk 0:00:35]}  Nxe4 {[%clk 0:01:48]} 25. Bxe4 {[%clk 0:00:36]}  f5 {[%clk 0:01:43]} 26. Bd3 {[%clk 0:00:34]}  g6 {[%clk 0:01:40]} 27. Bxd4 {[%clk 0:00:32]}  Bxd4 {[%clk 0:01:40]} 28. Qxd4 {[%clk 0:00:31]}  Qxd4 {[%clk 0:01:35]} 29. Nxd4 {[%clk 0:00:32]}  e5 {[%clk 0:01:35]} 30. Ne6 {[%clk 0:00:29]}  Rc6 {[%clk 0:01:33]} 31. Nc5 {[%clk 0:00:19]}  a5 {[%clk 0:01:32]} 32. Rc1 {[%clk 0:00:19]}  axb4 {[%clk 0:01:31]} 33. axb4 {[%clk 0:00:20]}  Kg7 {[%clk 0:01:27]} 34. Bb5 {[%clk 0:00:19]}  Rb6 {[%clk 0:01:23]} 35. Ne6+ {[%clk 0:00:17]}  Kf6 {[%clk 0:01:23]} 36. Rxc8 {[%clk 0:00:17]}  Kxe6 {[%clk 0:01:24]} 37. Rc6+ {[%clk 0:00:17]} 1-0


[Site "https://www.chess.com"]

[Event "Titled Tuesday Blitz January 10 Early 2023"]
[White "Jiganchine, Roman"]
[Black "Tasev, Dejan"]
[WhiteFideId "2603667"]
[BlackFideId "936618"]
[WhiteElo "2205"]
[BlackElo "2205"]
[Result "0-1"]
[Round "09"]
[TimeControl "180+2"]
[Date "2023.01.10"]
[WhiteClock "0:00:01"]
[BlackClock "0:00:09"]

1. e4 {[%clk 0:02:59]}  c6 {[%clk 0:02:59]} 2. d4 {[%clk 0:02:57]}  d5 {[%clk 0:03:00]} 3. exd5 {[%clk 0:02:57]}  cxd5 {[%clk 0:03:00]} 4. c4 {[%clk 0:02:57]}  e6 {[%clk 0:03:00]} 5. Nc3 {[%clk 0:02:57]}  Nf6 {[%clk 0:03:00]} 6. Nf3 {[%clk 0:02:57]}  Be7 {[%clk 0:03:00]} 7. cxd5 {[%clk 0:02:57]}  exd5 {[%clk 0:03:00]} 8. Bb5+ {[%clk 0:02:57]}  Nc6 {[%clk 0:03:00]} 9. O-O {[%clk 0:02:56]}  O-O {[%clk 0:02:59]} 10. h3 {[%clk 0:02:50]}  h6 {[%clk 0:02:57]} 11. Bf4 {[%clk 0:02:49]}  a6 {[%clk 0:02:57]} 12. Bxc6 {[%clk 0:02:49]}  bxc6 {[%clk 0:02:57]} 13. Ne5 {[%clk 0:02:48]}  Bb7 {[%clk 0:02:54]} 14. Qa4 {[%clk 0:02:42]}  Qb6 {[%clk 0:02:45]} 15. Qb3 {[%clk 0:02:27]}  Qxb3 {[%clk 0:02:29]} 16. axb3 {[%clk 0:02:28]}  c5 {[%clk 0:02:29]} 17. dxc5 {[%clk 0:02:05]}  Bxc5 {[%clk 0:02:28]} 18. Na4 {[%clk 0:02:04]}  Ba7 {[%clk 0:02:24]} 19. Rac1 {[%clk 0:02:00]}  Rac8 {[%clk 0:02:22]} 20. Nd3 {[%clk 0:01:56]}  Rxc1 {[%clk 0:02:15]} 21. Rxc1 {[%clk 0:01:55]}  Rc8 {[%clk 0:02:15]} 22. Ndc5 {[%clk 0:01:49]}  Bxc5 {[%clk 0:01:59]} 23. Nxc5 {[%clk 0:01:47]}  Ba8 {[%clk 0:01:54]} 24. Nxa6 {[%clk 0:01:41]}  Rxc1+ {[%clk 0:01:53]} 25. Bxc1 {[%clk 0:01:42]}  Kf8 {[%clk 0:01:50]} 26. Nc7 {[%clk 0:01:37]}  Bb7 {[%clk 0:01:48]} 27. Nb5 {[%clk 0:01:34]}  Ke7 {[%clk 0:01:45]} 28. Bf4 {[%clk 0:01:31]}  Ba6 {[%clk 0:01:36]} 29. Nd4 {[%clk 0:01:29]}  Kd7 {[%clk 0:01:33]} 30. f3 {[%clk 0:01:28]}  Ne8 {[%clk 0:01:29]} 31. Kf2 {[%clk 0:01:24]}  h5 {[%clk 0:01:28]} 32. h4 {[%clk 0:01:23]}  g6 {[%clk 0:01:27]} 33. Be5 {[%clk 0:01:22]}  f6 {[%clk 0:01:27]} 34. Bb8 {[%clk 0:01:20]}  Ng7 {[%clk 0:01:25]} 35. Ke3 {[%clk 0:01:17]}  Ne6 {[%clk 0:01:20]} 36. g3 {[%clk 0:01:04]}  Nc5 {[%clk 0:01:08]} 37. b4 {[%clk 0:00:53]}  Na4 {[%clk 0:01:03]} 38. b5 {[%clk 0:00:50]}  Bb7 {[%clk 0:01:02]} 39. b3 {[%clk 0:00:49]}  Nc5 {[%clk 0:00:57]} 40. Ba7 {[%clk 0:00:44]}  Kd6 {[%clk 0:00:45]} 41. Bb8+ {[%clk 0:00:37]}  Kd7 {[%clk 0:00:45]} 42. Ba7 {[%clk 0:00:37]}  Kd6 {[%clk 0:00:44]} 43. Bb6 {[%clk 0:00:35]}  Nd7 {[%clk 0:00:41]} 44. Ba5 {[%clk 0:00:33]}  Ke7 {[%clk 0:00:38]} 45. Bb4+ {[%clk 0:00:33]}  Kf7 {[%clk 0:00:37]} 46. Bd6 {[%clk 0:00:33]}  Ne5 {[%clk 0:00:36]} 47. b6 {[%clk 0:00:23]}  Ke8 {[%clk 0:00:29]} 48. b4 {[%clk 0:00:19]}  Nc4+ {[%clk 0:00:28]} 49. Kd3 {[%clk 0:00:15]}  Nxd6 {[%clk 0:00:28]} 50. Ne6 {[%clk 0:00:15]}  Ke7 {[%clk 0:00:27]} 51. Nc5 {[%clk 0:00:15]}  Bc6 {[%clk 0:00:25]} 52. g4 {[%clk 0:00:14]}  hxg4 {[%clk 0:00:25]} 53. fxg4 {[%clk 0:00:14]}  Kf7 {[%clk 0:00:22]} 54. Kd4 {[%clk 0:00:13]}  Nb5+ {[%clk 0:00:22]} 55. Kd3 {[%clk 0:00:13]}  Nd6 {[%clk 0:00:21]} 56. Kd4 {[%clk 0:00:13]}  Kg7 {[%clk 0:00:21]} 57. b5 {[%clk 0:00:11]}  Nxb5+ {[%clk 0:00:21]} 58. Kd3 {[%clk 0:00:11]}  Nd6 {[%clk 0:00:20]} 59. Ne6+ {[%clk 0:00:11]}  Kh6 {[%clk 0:00:19]} 60. Nd8 {[%clk 0:00:10]}  Bb7 {[%clk 0:00:19]} 61. Kd4 {[%clk 0:00:10]}  f5 {[%clk 0:00:19]} 62. g5+ {[%clk 0:00:09]}  Kh5 {[%clk 0:00:19]} 63. Ke5 {[%clk 0:00:09]}  Nc4+ {[%clk 0:00:19]} 64. Kf6 {[%clk 0:00:07]}  Nxb6 {[%clk 0:00:19]} 65. Nxb7 {[%clk 0:00:07]}  d4 {[%clk 0:00:19]} 66. Nc5 {[%clk 0:00:07]}  f4 {[%clk 0:00:17]} 67. Nd3 {[%clk 0:00:06]}  f3 {[%clk 0:00:17]} 68. Ke5 {[%clk 0:00:03]}  Kg4 {[%clk 0:00:17]} 69. Kxd4 {[%clk 0:00:03]}  Kxh4 {[%clk 0:00:17]} 70. Ke3 {[%clk 0:00:03]}  Kg3 {[%clk 0:00:17]} 71. Nf4 {[%clk 0:00:02]}  f2 {[%clk 0:00:17]} 72. Ne2+ {[%clk 0:00:02]}  Kg2 {[%clk 0:00:17]} 73. Nf4+ {[%clk 0:00:02]}  Kg3 {[%clk 0:00:15]} 74. Ne2+ {[%clk 0:00:02]}  Kg4 {[%clk 0:00:12]} 75. Kxf2 {[%clk 0:00:02]}  Kxg5 {[%clk 0:00:12]} 76. Kg3 {[%clk 0:00:02]}  Nd5 {[%clk 0:00:12]} 77. Nd4 {[%clk 0:00:02]}  Kf6 {[%clk 0:00:11]} 78. Nf3 {[%clk 0:00:02]}  Ne3 {[%clk 0:00:08]} 79. Kf4 {[%clk 0:00:01]}  Nd5+ {[%clk 0:00:08]} 80. Kg3 {[%clk 0:00:01]}  Ne7 {[%clk 0:00:09]} 81. Kg2 {[%clk 0:00:02]}  Nf5 {[%clk 0:00:09]} 82. Nd2 {[%clk 0:00:01]}  Ke5 {[%clk 0:00:09]} 83. Nf3+ {[%clk 0:00:01]}  Kf4 {[%clk 0:00:09]} 84. Nh4 {[%clk 0:00:01]}  Nxh4+ {[%clk 0:00:09]} 0-1


[Site "https://www.chess.com"]